fUST/lending_fUST_20260201
["ID","MTS","AMOUNT","RATE_DAILY","PERIOD"]
[404190674,1769921438350,-166.0,0.00015,2]
[404190675,1769921438360,-169.68007982,0.00015,2]
[404190676,1769921438369,-151.0,0.00015,2]
[404190677,1769921438378,-151.0,0.00015,2]
[404190678,1769921438387,-335.0,0.00015,2]
[404190679,1769921438396,-335.0,0.00015,2]
[404190680,1769921438405,-153.60513263,0.00015,2]
[404190681,1769921438415,-335.0,0.00015,2]
[404190682,1769921438424,-151.0,0.00015,2]
[404190683,1769921438434,-335.0,0.00015,2]
[404190684,1769921438444,-151.0,0.00015,2]
[404190685,1769921438454,-335.0,0.00015,2]
[404190686,1769921438463,-151.0,0.00015,2]
[404190687,1769921438473,-335.0,0.00015,2]
[404190688,1769921438482,-151.0,0.00015,2]
[404190689,1769921438492,-335.0,0.00015,2]
[404190690,1769921438501,-151.0,0.00015,2]
[404190691,1769921438510,-335.0,0.00015,2]
[404190692,1769921438520,-151.0,0.00015,2]
[404190693,1769921438529,-335.0,0.00015,2]
[404190694,1769921438539,-151.0,0.00015,2]
[404190695,1769921438549,-335.0,0.00015,2]
[404190696,1769921438558,-151.0,0.00015,2]
[404190697,1769921438567,-335.0,0.00015,2]
[404190698,1769921438576,-292.0,0.00015,2]
[404190699,1769921438586,-335.0,0.00015,2]
[404190700,1769921438595,-335.0,0.00015,2]
[404190701,1769921438606,-335.0,0.00015,2]
[404190702,1769921438615,-335.0,0.00015,2]
[404190703,1769921438625,-335.0,0.00015,2]
[404190704,1769921438634,-335.0,0.00015,2]
[404190705,1769921438644,-335.0,0.00015,2]
[404190706,1769921438654,-335.0,0.00015,2]
[404190707,1769921438663,-335.0,0.00015,2]
[404190708,1769921438672,-335.0,0.00015,2]
[404190709,1769921438682,-335.0,0.00015,2]
[404190710,1769921438692,-335.0,0.00015,2]
[404190711,1769921438701,-335.0,0.00015,2]
[404190712,1769921438711,-335.0,0.00015,2]
[404190713,1769921438721,-335.0,0.00015,2]
[404190714,1769921438731,-335.0,0.00015,2]
[404190715,1769921438741,-335.0,0.00015,2]
[404190716,1769921438751,-335.0,0.00015,2]
[404190717,1769921438760,-335.0,0.00015,2]
[404190718,1769921438770,-335.0,0.00015,2]
[404190719,1769921438779,-335.0,0.00015,2]
[404190720,1769921438789,-500.0,0.00015,2]
[404190721,1769921438798,-335.0,0.00015,2]
[404190722,1769921438808,-195.43253224,0.00015,2]
[404190723,1769921438818,-335.0,0.00015,2]
[404190724,1769921438828,-335.0,0.00015,2]
[404190725,1769921438837,-166.0,0.00015,2]
[404190726,1769921438847,-166.0,0.00015,2]
[404190727,1769921438857,-166.0,0.00015,2]
[404190728,1769921438866,-420.0,0.00015009,2]
[404190729,1769921438877,-266.0,0.00015009,2]
[404190730,1769921438888,-480.0,0.00015066,2]
[404190731,1769921438897,-185.250822,0.00015068,2]
[404190732,1769921438906,-324.009181,0.00015082,2]
[404190733,1769921438916,-205.6337706,0.00015105,2]
[404190734,1769921438925,-222.0,0.000152,2]
[404190735,1769921438935,-300.0,0.00015299,2]
[404190736,1769921438944,-300.0,0.00015299,2]
[404190737,1769921438954,-300.0,0.00015299,2]
[404190738,1769921438964,-300.0,0.00015299,2]
[404190739,1769921438973,-300.0,0.00015299,2]
[404190740,1769921438982,-300.0,0.00015299,2]
[404190741,1769921438992,-300.0,0.00015299,2]
[404190742,1769921439001,-300.0,0.00015299,2]
[404190743,1769921439011,-300.0,0.00015299,2]
[404190744,1769921439021,-300.0,0.00015299,2]
[404190745,1769921439030,-300.0,0.00015299,2]
[404190746,1769921439039,-300.0,0.00015299,2]
[404190747,1769921439048,-300.0,0.00015299,2]
[404190748,1769921439058,-300.0,0.00015299,2]
[404190749,1769921439067,-300.0,0.00015299,2]
[404190750,1769921439077,-600.0,0.00015299,2]
[404190751,1769921439087,-267.60207529,0.00015299,2]
[404190752,1769921439099,-150.163,0.00015397,2]
[404190753,1769921439108,-150.125,0.00015397,2]
[404190754,1769921439118,-1370.0,0.00015675,2]
[404190755,1769921439127,-2151.0,0.00015675,2]
[404190756,1769921439136,-630.0,0.00015675,2]
[404190757,1769921439145,-324.009181,0.00015691,2]
[404190758,1769921439155,-167.58279729,0.00015874,2]
[404190759,1769921439164,-189.7828812,0.00016298,2]
[404190760,1769921439173,-183.9702392,0.00016298,2]
[404190761,1769921439182,-324.009181,0.000163,2]
[404190762,1769921439192,-5235.3339384,0.00016401,2]
[404190763,1769921439201,-15867.0576865,0.00016402,2]
[404190764,1769921439211,-500.0,0.00016438,2]
[404190765,1769921439220,-214.41239664,0.00016438,2]
[404190766,1769921439229,-587.0,0.00016449,2]
[404190767,1769921439238,-267.5668732,0.00016515,3]
[404190768,1769921439248,-1069.19722529,0.00016526,3]
[404190769,1769921439258,-720.0,0.00016829,2]
[404190770,1769921439267,-324.009181,0.00016909,2]
[404190771,1769921439276,-253.86589298,0.00016999,2]
[404190772,1769921439285,-200.0,0.00017171,3]
[404190773,1769921439295,-200.0,0.00017171,3]
[404190774,1769921439304,-200.0,0.00017171,3]
[404190775,1769921439313,-200.0,0.00017171,3]
[404190776,1769921439322,-200.0,0.00017171,3]
[404190777,1769921439331,-200.0,0.00017171,3]
[404190778,1769921439340,-468.896202,0.000172,7]
[404190779,1769921439350,-1195.35286245,0.00017201,2]
[404190780,1769921439359,-606.52569747,0.00017245,2]
[404190781,1769921439368,-1796.19307421,0.00017297,2]
[404190782,1769921439378,-24648.84301924,0.0001747,2]
[404190792,1769921440174,-269.247383,0.0001747,2]
[404190805,1769921446093,-15787.12716928,0.0001747,2]
[404190807,1769921603457,-419.56064219,0.00012454,2]
[404190808,1769921605777,-178.66155229,0.00012454,2]
[404190809,1769921607290,-326.46175366,0.00012454,2]
[404190810,1769921608772,-224.19640414,0.00012454,2]
[404190811,1769921612307,-220.87669103,0.00012454,2]
[404190812,1769921613851,-367.64998241,0.00012454,2]
[404190813,1769921615491,-237.31737076,0.00012454,2]
[404190814,1769921617551,-227.31540039,0.00012454,2]
[404190815,1769921621773,-188.2712893,0.00012454,2]
[404190816,1769921623176,-188.19369763,0.00012454,2]
[404190817,1769921624678,-377.04845098,0.00012454,2]
[404190818,1769921629470,-193.1485395,0.00012454,2]
[404190819,1769921631484,-183.37336798,0.00012454,2]
[404190820,1769921634040,-239.97383337,0.00012454,2]
[404190821,1769921636626,-234.73007421,0.00012454,2]
[404190822,1769921639238,-296.83422438,0.00012454,2]
[404190823,1769921645716,-251.09310149,0.00012454,2]
[404190824,1769921647744,-266.30773593,0.00012454,2]
[404190825,1769921654165,4229.19187442,0.00012365,2]
[404190826,1769921664470,1171.87026137,0.00012454,2]
[404190829,1769922006264,-193.81392878,0.00012454,2]
[404190830,1769922010553,-306.18607122,0.00012454,2]
[404190831,1769922010578,-7.14578176,0.00012454,2]
[404190832,1769922010605,-20.36041109,0.00012454,2]
[404190833,1769922013223,-300.0,0.00012454,2]
[404190834,1769922014165,151.0,0.0003738,31]
[404190835,1769922014914,156.587,0.0003738,119]
[404190836,1769922015325,-174.09296973,0.00012454,2]
[404190837,1769922015407,162.380719,0.0003738,119]
[404190838,1769922016035,168.3888056,0.0003738,80]
[404190839,1769922016691,174.61919141,0.0003738,118]
[404190840,1769922020537,181.08010149,0.0003738,73]
[404190841,1769922025227,187.78006525,0.0003738,73]
[404190842,1769922053495,-101.54661918,0.00012454,2]
[404190843,1769922053522,-180.44455638,0.00012504,2]
[404190844,1769922053548,-272.08185615,0.00012554,2]
[404190845,1769922069328,-212.92457653,0.00014504,2]
[404190846,1769922069354,-165.60387837,0.00015,2]
[404190847,1769922069380,-217.70383893,0.00015714,2]
[404190848,1769922069405,-195.0,0.00015921,2]
[404190849,1769922069432,-639.0,0.00015921,2]
[404190850,1769922069543,-511.58567074,0.00015922,2]
[404190851,1769922098401,-630.0,0.00015767,2]
[404190852,1769922098440,-170.23229383,0.00015922,2]
[404190853,1769922270292,195.11847889,0.0003738,120]
[404190854,1769922270692,195.11847889,0.0003738,120]
[404190855,1769922275861,4598.94786421,0.0001,2]
[404190856,1769922275882,10000.01,0.0001,2]
[404190857,1769922275904,2917.74213579,0.0001,2]
[404190860,1769922619493,160.10457365,0.0003738,120]
[404190876,1769922632021,-862.89023184,0.00015305,2]
[404190877,1769922632031,-172.57717372,0.00015382,2]
[404190879,1769922632042,-185.250822,0.00015459,2]
[404190881,1769922632051,-300.0,0.00015766,2]
[404190883,1769922632061,-300.0,0.00015766,2]
[404190885,1769922632070,-225.0,0.00015766,2]
[404190887,1769922632079,-300.0,0.00015766,2]
[404190889,1769922632089,-1904.71285842,0.00015767,2]
[404190891,1769922632098,-2151.0,0.00015767,2]
[404190893,1769922632107,-1370.0,0.00015767,2]
[404190895,1769922632116,-328.34114517,0.0001589,2]
[404190897,1769922632125,-150.736,0.00015922,2]
[404190899,1769922632134,-391.86691007,0.00016051,2]
[404190900,1769922632144,-298.08698106,0.00016087,2]
[404190902,1769922632153,-300.0,0.0001624,2]
[404190904,1769922632162,-300.0,0.0001624,2]
[404190906,1769922632171,-300.0,0.0001624,2]
[404190908,1769922632180,-300.0,0.0001624,2]
[404190910,1769922632189,-300.0,0.0001624,2]
[404190912,1769922632198,-300.0,0.0001624,2]
[404190914,1769922632207,-300.0,0.0001624,2]
[404190916,1769922632216,-300.0,0.0001624,2]
[404190918,1769922632225,-300.0,0.0001624,2]
[404190920,1769922632235,-300.0,0.0001624,2]
[404190922,1769922632244,-300.0,0.0001624,2]
[404190924,1769922632253,-300.0,0.0001624,2]
[404190926,1769922632263,-300.0,0.0001624,2]
[404190929,1769922632274,-300.0,0.0001624,2]
[404190931,1769922632283,-300.0,0.0001624,2]
[404190933,1769922632292,-600.0,0.00016564,2]
[404190935,1769922632301,-7933.5288433,0.00016797,2]
[404190936,1769922632310,-183.9702393,0.00016797,2]
[404190938,1769922632319,-500.0,0.00016877,2]
[404190940,1769922632329,-296.83422438,0.00016877,2]
[404190942,1769922632338,-681.55457074,0.00016878,2]
[404190945,1769922632349,-6927.59881466,0.00016878,2]
[404190947,1769922632359,-591.0140613,0.00017076,2]
[404190949,1769922632368,-696.65228457,0.00017165,2]
[404190951,1769922632377,-448.57032793,0.00017171,3]
[404190953,1769922632386,-529.93241078,0.00017201,2]
[404190955,1769922632395,-420.0,0.00017242,2]
[404190957,1769922632404,-203.64106499,0.00017382,2]
[404190959,1769922632414,-679.91719977,0.0001747,2]
[404190961,1769922632425,-2431.91334718,0.0001747,2]
[404190963,1769922632435,-710.33255992,0.0001747,2]
[404191082,1769922638116,-9833.89630528,0.0001747,2]
[404191083,1769922638125,-584.499,0.00017471,2]
[404191084,1769922638134,-324.009181,0.00017519,2]
[404191085,1769922638144,-150.10285153,0.00017808,2]
[404191086,1769922638154,-1010.01742507,0.00017833,2]
[404191087,1769922638164,-481.61341871,0.00017999,2]
[404191088,1769922638173,-500.08867765,0.00017999,2]
[404191089,1769922638182,-19930.79954156,0.00018,2]
[404191090,1769922638193,-6589.73407865,0.00018,2]
[404191104,1769922640334,-303.59,0.00018,2]
[404191109,1769922640625,-2e-08,0.00018,2]
[404191116,1769922645465,-744.28202374,0.00018,2]
[404191120,1769922646704,-805.66394358,0.00018,2]
[404191174,1769923244758,2592.99691769,0.00012454,2]
[404191175,1769923295823,862.89023184,0.00012454,2]
[404191212,1769923832166,-172.57717372,0.00012639,2]
[404191214,1769923832176,-648.85299123,0.00013273,2]
[404191216,1769923832183,-285.89128994,0.00013273,2]
[404191218,1769923832191,-203.64106499,0.00014639,2]
[404191220,1769923832199,-4037.39298257,0.0001534,2]
[404191221,1769923832207,-300.0,0.00015974,2]
[404191223,1769923832214,-225.0,0.00015974,2]
[404191225,1769923832223,-300.0,0.00015974,2]
[404191227,1769923832232,-300.0,0.00015974,2]
[404191228,1769923832240,-1904.71285842,0.00015975,2]
[404191229,1769923832249,-2151.0,0.00015975,2]
[404191230,1769923832259,-630.0,0.00015975,2]
[404191231,1769923832268,-1370.0,0.00015975,2]
[404191232,1769923832277,-716.0,0.00015975,2]
[404191233,1769923832286,-179.396,0.00015975,2]
[404191234,1769923832295,-562.61,0.00015975,2]
[404191235,1769923832304,-418.0,0.00015975,2]
[404191236,1769923832313,-1050.69166453,0.00016266,2]
[404191237,1769923832323,-479.97711571,0.00016266,2]
[404191238,1769923832332,-202.00796153,0.00016266,2]
[404191239,1769923832341,-300.0,0.00016294,2]
[404191240,1769923832351,-300.0,0.00016294,2]
[404191241,1769923832360,-300.0,0.00016294,2]
[404191242,1769923832369,-300.0,0.00016294,2]
[404191243,1769923832378,-300.0,0.00016294,2]
[404191244,1769923832387,-300.0,0.00016294,2]
[404191245,1769923832396,-300.0,0.00016294,2]
[404191246,1769923832405,-300.0,0.00016294,2]
[404191247,1769923832414,-300.0,0.00016294,2]
[404191248,1769923832423,-300.0,0.00016294,2]
[404191249,1769923832432,-300.0,0.00016294,2]
[404191250,1769923832441,-300.0,0.00016294,2]
[404191251,1769923832450,-300.0,0.00016294,2]
[404191252,1769923832459,-300.0,0.00016294,2]
[404191253,1769923832468,-300.0,0.00016294,2]
[404191254,1769923832478,-500.0,0.00016516,2]
[404191255,1769923832487,-296.83422438,0.00016516,2]
[404191256,1769923832496,-6366.48553456,0.00016517,2]
[404191257,1769923832506,-600.0,0.00016619,2]
[404191258,1769923832515,-234.70495626,0.00016639,2]
[404191259,1769923832524,-1794.2813117,0.00016654,2]
[404191260,1769923832534,-863.95880827,0.00016849,2]
[404191261,1769923832543,-363.61433076,0.00016849,2]
[404191262,1769923832552,-614.07849908,0.00017171,3]
[404191263,1769923832561,-467.11983385,0.00017171,3]
[404191264,1769923832570,-185.41617609,0.00017171,3]
[404191265,1769923832580,-3885.6705572,0.00017348,2]
[404191266,1769923832588,-183.9702393,0.00017348,2]
[404191267,1769923832598,-7732.0229808,0.00017348,2]
[404191274,1769923838303,-1709.7228724,0.00017348,2]
[404191275,1769923838314,-835.45976051,0.00017348,2]
[404191323,1769923840512,-938.43498246,0.00017348,2]
[404191342,1769923844612,-7070.69794995,0.00017348,2]
[404191352,1769923846472,-3019.1865239,0.00017348,2]
[404191353,1769923884156,-4110.94237795,0.0001672,2]
[404191354,1769923950461,269.13018939,0.00037382,120]
[404191355,1769923950814,269.13018939,0.00037382,120]
[404191356,1769923951196,269.13018939,0.00037382,120]
[404191357,1769924184664,152.79342071,0.00030136,120]
[404191365,1769924853031,1054.908,0.00030137,120]
[404191411,1769925032407,-3788.72237795,0.00015274,2]
[404191413,1769925032416,-163.85113992,0.00015624,2]
[404191415,1769925032425,-3368.47414964,0.000159,2]
[404191417,1769925032435,-1000.0,0.00015999,2]
[404191420,1769925032444,-300.0,0.00016276,2]
[404191422,1769925032454,-300.0,0.00016276,2]
[404191424,1769925032463,-300.0,0.00016276,2]
[404191426,1769925032471,-300.0,0.00016276,2]
[404191428,1769925032481,-4033.09581838,0.00016277,2]
[404191430,1769925032490,-300.0,0.00016337,2]
[404191432,1769925032499,-630.0,0.0001634,2]
[404191434,1769925032510,-2151.0,0.0001634,2]
[404191436,1769925032520,-1370.0,0.0001634,2]
[404191438,1769925032529,-298.9604246,0.00016693,2]
[404191440,1769925032539,-142.06234392,0.00016717,2]
[404191444,1769925032567,-380.57647408,0.00016717,2]
[404191446,1769925032580,-4826.7897936,0.00016717,2]
[404191448,1769925032589,-500.0,0.00016718,2]
[404191450,1769925032598,-211.08315559,0.00016718,2]
[404191453,1769925032607,-500.0,0.00016718,2]
[404191455,1769925032616,-500.0,0.00016718,2]
[404191456,1769925032625,-14586.72782155,0.0001672,2]
[404191458,1769925032635,-183.9702393,0.00016817,2]
[404191460,1769925032643,-4961.07142832,0.00016817,2]
[404191462,1769925032654,-4196.64237308,0.00016817,2]
[404191463,1769925032663,-9421.3533247,0.00016817,2]
[404191464,1769925032672,-379.5657625,0.00016817,2]
[404191465,1769925032681,-1535.92677026,0.00016877,2]
[404191466,1769925032690,-224.74787196,0.00016877,2]
[404191500,1769925038504,-596.03724552,0.00016718,2]
[404191502,1769925038517,-500.0,0.00016718,2]
[404191504,1769925038526,-193.45355716,0.00016718,2]
[404191509,1769925038563,-140.69506116,0.00016718,2]
[404191511,1769925038572,-500.0,0.00016718,2]
[404191513,1769925038581,-106.23030394,0.00016718,2]
[404191581,1769925046712,-150.736,0.0001634,2]
[404191582,1769925046721,-393.76969606,0.00016718,2]
[404191583,1769925046731,-421.67760495,0.00016877,2]
[404191584,1769925046740,-220.61540906,0.00017,2]
[404191585,1769925046749,-378.942317,0.00017041,2]
[404191586,1769925046758,-740.92303967,0.00017171,3]
[404191587,1769925046767,-271.04590063,0.00017171,3]
[404191588,1769925046776,-919.56224763,0.00017171,3]
[404191594,1769925410341,500.0,0.00037404,30]
[404191597,1769925675759,-160.57411712,0.00014904,2]
[404191598,1769925691562,-182.85453652,0.00016461,2]
[404191599,1769925691575,-235.14546348,0.00016461,2]
[404191600,1769925691585,-182.85453652,0.00016756,2]
[404191654,1769926231561,-569.80504538,0.00016312,2]
[404191656,1769926231570,-157.36263478,0.00016387,2]
[404191658,1769926231579,-1370.0,0.00016461,2]
[404191660,1769926231589,-208.0,0.00016645,2]
[404191662,1769926231598,-300.0,0.00016645,2]
[404191664,1769926231608,-2151.0,0.00016646,2]
[404191666,1769926231617,-4008.8359371,0.00016757,2]
[404191668,1769926231627,-767.9834267,0.000173,2]
[404191670,1769926231636,-194.48639998,0.00017348,2]
[404191672,1769926231645,-777.9455999,0.00017348,2]
[404191675,1769926231654,-1750.37759978,0.00017348,2]
[404191678,1769926231663,-161.2708594,0.00017348,2]
[404191680,1769926231672,-645.0834376,0.00017348,2]
[404191683,1769926231681,-679.91719977,0.0001747,2]
[404191686,1769926231691,-300.0,0.00017694,2]
[404191688,1769926231700,-300.0,0.00017694,2]
[404191690,1769926231709,-300.0,0.00017694,2]
[404191692,1769926231718,-300.0,0.00017694,2]
[404191694,1769926231727,-300.0,0.00017694,2]
[404191696,1769926231736,-300.0,0.00017694,2]
[404191698,1769926231745,-300.0,0.00017694,2]
[404191700,1769926231754,-300.0,0.00017694,2]
[404191702,1769926231764,-300.0,0.00017694,2]
[404191704,1769926231773,-300.0,0.00017694,2]
[404191706,1769926231783,-300.0,0.00017694,2]
[404191707,1769926231793,-300.0,0.00017694,2]
[404191709,1769926231802,-300.0,0.00017694,2]
[404191711,1769926231811,-300.0,0.00017694,2]
[404191713,1769926231820,-300.0,0.00017694,2]
[404191715,1769926231830,-3111.7823996,0.00017862,2]
[404191717,1769926231839,-500.0,0.00017998,2]
[404191719,1769926231848,-500.0,0.00017998,2]
[404191721,1769926231857,-500.0,0.00017998,2]
[404191723,1769926231868,-177.33747172,0.00017998,2]
[404191725,1769926231879,-464.6368622,0.00017998,2]
[404191727,1769926231888,-500.0,0.00017998,2]
[404191729,1769926231897,-246.11573407,0.00017998,2]
[404191731,1769926231906,-424.78768876,0.00017998,2]
[404191733,1769926231917,-158.30974319,0.00017998,2]
[404191735,1769926231926,-510.132,0.00017999,2]
[404191737,1769926231935,-183878.1157761,0.00018,2]
[404191739,1769926231945,-136267.11476442,0.00018,2]
[404191740,1769926231955,-38214.06905403,0.00018,2]
[404191742,1769926231965,-420.0,0.00018186,2]
[404191744,1769926231974,-600.0,0.00018359,2]
[404191746,1769926231983,-185.68790904,0.00018387,2]
[404191748,1769926231992,-1451.43773459,0.00018497,2]
[404191750,1769926232001,-150.0,0.00018515,3]
[404191752,1769926232011,-150.0,0.00018652,3]
[404191753,1769926232020,-150.0,0.00018652,3]
[404191755,1769926232029,-150.0,0.00018652,3]
[404191756,1769926232039,-150.0,0.00018652,3]
[404191757,1769926232048,-150.0,0.00018652,3]
[404191758,1769926232057,-150.0,0.00018652,3]
[404191759,1769926232066,-500.0,0.00018652,3]
[404191760,1769926232076,-150.0,0.00018652,3]
[404191761,1769926232085,-150.0,0.00018652,3]
[404191762,1769926232095,-150.0,0.00018652,3]
[404191763,1769926232104,-317.0,0.00018692,2]
[404191764,1769926232113,-262.46605535,0.00018789,3]
[404191765,1769926232122,-292.29504255,0.00018789,3]
[404191766,1769926232132,-150.0,0.00018789,3]
[404191767,1769926232141,-150.0,0.00018789,3]
[404191768,1769926232150,-628.21663748,0.00018789,3]
[404191769,1769926232159,-150.0,0.00018789,3]
[404191770,1769926232169,-150.0,0.00018789,3]
[404191771,1769926232178,-271.36203035,0.00018789,3]
[404191772,1769926232189,-150.0,0.00018789,3]
[404191773,1769926232200,-894.4922046,0.00018891,2]
[404191774,1769926232210,-303.10001603,0.000189,2]
[404191775,1769926232219,-303.10001603,0.000189,2]
[404191776,1769926232229,-359.17521473,0.00018909,2]
[404191777,1769926232238,-150.0,0.00018926,3]
[404191778,1769926232248,-150.0,0.00018926,3]
[404191779,1769926232258,-189.6779546,0.00018986,2]
[404191780,1769926232268,-285.8085484,0.00018986,2]
[404191781,1769926232276,-185.6050702,0.00018986,2]
[404191782,1769926232285,-389.4271264,0.00018986,2]
[404191783,1769926232295,-148.87968628,0.00018986,2]
[404191784,1769926232307,-4.12031372,0.00018986,2]
[404191785,1769926232316,-185.6050702,0.00018986,2]
[404191786,1769926232325,-153.0,0.00018986,2]
[404191787,1769926232334,-153.0,0.00018986,2]
[404191788,1769926232343,-185.6050702,0.00018986,2]
[404191789,1769926232352,-185.6050702,0.00018986,2]
[404191790,1769926232361,-185.6050702,0.00018986,2]
[404191791,1769926232371,-185.6050702,0.00018986,2]
[404191792,1769926232383,-185.6050702,0.00018986,2]
[404191793,1769926232393,-357.7681017,0.00019,20]
[404191794,1769926232412,-8200.67785268,0.00019,2]
[404191795,1769926232423,-445.54528704,0.00019,2]
[404191820,1769926237689,-399.63196196,0.00017999,2]
[404191822,1769926237699,-350.06207435,0.00017999,2]
[404191824,1769926237709,-4500.08596636,0.00019,2]
[404191826,1769926237718,-185.4706062,0.00019041,2]
[404191827,1769926237727,-2742.94466224,0.0001905,3]
[404191829,1769926237737,-150.0,0.00019063,3]
[404191830,1769926237746,-150.0,0.00019063,3]
[404191831,1769926237755,-160.0,0.00019089,2]
[404191832,1769926237765,-303.10001603,0.00019089,2]
[404191833,1769926237776,-303.10001603,0.00019089,2]
[404191834,1769926237785,-166.11657879,0.00019132,2]
[404191835,1769926237794,-150.0,0.000192,3]
[404191836,1769926237803,-150.0,0.000192,3]
[404191837,1769926237812,-9605.78563119,0.000192,3]
[404191838,1769926237824,-957.60240792,0.000192,3]
[404191844,1769926244602,-1061.42787744,0.0001905,3]
[404191845,1769926244612,-6339.11622954,0.000192,3]
[404191846,1769926244659,-24209.07206546,0.000192,3]
[404191960,1769926245873,-925.61998,0.000192,3]
[404191962,1769926245890,-88504.54075829,0.000192,3]
[404192169,1769926389018,2225.46108482,0.00012034,2]
[404192171,1769926451134,220.5431935,0.00012034,2]
[404192172,1769926511746,181.903392,0.00037392,31]
[404192173,1769926512058,181.903392,0.00037392,31]
[404192174,1769926512560,181.903392,0.00037392,31]
[404192175,1769926512902,181.903392,0.00037392,31]
[404192176,1769926513256,2000.0,0.00037392,30]
[404192177,1769926513825,181.903392,0.00037392,31]
[404192178,1769926513908,2074.0,0.00037392,30]
[404192179,1769926514443,181.903392,0.00037392,31]
[404192180,1769926514601,2150.738,0.00037392,30]
[404192181,1769926514727,181.903392,0.00037392,31]
[404192182,1769926515022,181.903392,0.00037392,31]
[404192183,1769926515320,181.903392,0.00037392,31]
[404192184,1769926515637,181.903392,0.00037392,31]
[404192185,1769926515944,181.903392,0.00037392,31]
[404192186,1769926516542,331.23025641,0.00037392,30]
[404192187,1769926516788,181.903392,0.00037392,31]
[404192188,1769926517200,250.0,0.00037392,30]
[404192189,1769926517638,181.903392,0.00037392,31]
[404192190,1769926517834,250.0,0.00037392,30]
[404192191,1769926517964,181.903392,0.00037392,31]
[404192192,1769926518391,181.903392,0.00037392,31]
[404192193,1769926518482,250.0,0.00037392,30]
[404192194,1769926518711,181.903392,0.00037392,31]
[404192195,1769926519131,250.0,0.00037392,30]
[404192196,1769926519167,181.903392,0.00037392,31]
[404192197,1769926519450,181.903392,0.00037392,31]
[404192198,1769926519736,181.903392,0.00037392,31]
[404192199,1769926519785,250.0,0.00037392,30]
[404192200,1769926520115,181.903398,0.00037392,31]
[404192201,1769926520421,250.0,0.00037392,30]
[404192202,1769926521074,250.0,0.00037392,30]
[404192203,1769926521718,250.0,0.00037392,30]
[404192204,1769926522363,250.0,0.00037392,30]
[404192205,1769926523020,250.0,0.00037392,30]
[404192206,1769926523665,250.0,0.00037392,30]
[404192207,1769926524314,250.0,0.00037392,30]
[404192208,1769926524946,250.0,0.00037392,30]
[404192209,1769926529004,151.0,0.00037392,30]
[404192210,1769926529651,151.0,0.00037392,30]
[404192211,1769926530274,151.0,0.00037392,30]
[404192212,1769926530913,151.0,0.00037392,30]
[404192213,1769926531566,151.0,0.00037392,30]
[404192214,1769926532212,151.0,0.00037392,30]
[404192215,1769926532857,151.0,0.00037392,30]
[404192216,1769926585790,151.0,0.00037392,31]
[404192217,1769926586097,151.0,0.00037392,31]
[404192219,1769926817550,1516.20046219,0.00037414,31]
[404192220,1769926850922,184.50441516,0.00037414,120]
[404192240,1769927109818,151.0,0.00037414,120]
[404192241,1769927110957,156.587,0.00037414,120]
[404192242,1769927111597,162.380719,0.00037414,120]
[404192243,1769927112237,168.3888056,0.00037414,120]
[404192245,1769927112896,174.61919141,0.00037414,120]
[404192247,1769927113578,181.08010149,0.00037414,120]
[404192249,1769927114199,187.78006525,0.00037414,120]
[404192251,1769927114865,194.72792766,0.00037414,120]
[404192253,1769927115488,201.93286099,0.00037414,120]
[404192255,1769927116148,209.40437684,0.00037414,120]